bitfinex/quotes_ETHUSD_20250430
["timestamp","ask_amount","ask_price","bid_price","bid_amount"]
[1746024233456,6.27397774,1765.9,1765.5,0.05663689]
[1746024233755,6.27397774,1765.9,1765.4,6.41604]
[1746024234117,6.27397774,1766.1,1765.5,1.17833207]
[1746024234319,6.27397774,1766.1,1765.6,5.67]
[1746024234526,6.27397774,1766.1,1765.7,0.567]
[1746024234731,0.42405037,1766.2,1765.8,1.0622]
[1746024234935,7.41327774,1766.3,1765.8,1.0622]
[1746024235225,7.33297774,1766.5,1765.9,0.05662404]
[1746024235425,7.33297774,1766.5,1765.9,0.73550644]
[1746024235626,6.27397774,1766.3,1766.0,5.67]
[1746024237065,1.059,1766.5,1766.0,5.67]
[1746024237066,6.27397774,1766.1,1766.0,5.67]
[1746024237727,7.36267774,1766.1,1765.4,6.7299]
[1746024238058,6.27397774,1765.9,1765.5,0.67299]
[1746024239264,0.41936756,1766.2,1765.6,1.0599]
[1746024239457,7.36267774,1766.3,1765.6,1.0599]
[1746024239668,6.27397774,1766.3,1765.7,5.67]
[1746024239957,6.27397774,1766.4,1765.8,1.75422104]
[1746024240164,6.27397774,1766.4,1765.9,5.67]
[1746024241951,6.27397774,1766.2,1765.9,5.67]
[1746024242848,1.58820384,1766.5,1765.9,5.67]
[1746024242849,6.27397774,1766.4,1765.9,5.67]
[1746024243030,1.58820384,1766.5,1765.9,5.67]
[1746024243230,6.27397774,1766.4,1766.0,0.567]
[1746024243451,6.27397774,1766.4,1766.0,6.237]
[1746024243652,9.27397774,1766.6,1766.1,1.1127]
[1746024243967,6.70736894,1766.6,1766.1,1.1127]
[1746024244169,6.27397774,1766.6,1766.1,1.1127]
[1746024244371,6.27397774,1766.6,1766.2,5.67]
[1746024244567,0.4086531,1766.7,1766.4,1.1127]
[1746024244767,0.4086531,1766.7,1766.5,5.67]
[1746024244952,0.4086531,1766.7,1766.6,1.1127]
[1746024245142,6.27397774,1767.2,1766.7,5.2613469]
[1746024245328,6.70183664,1767.3,1766.9,1.1127]
[1746024245530,6.27397774,1767.3,1766.9,1.1127]
[1746024245836,1.53615666,1767.4,1766.8,0.52613469]
[1746024246071,6.27397774,1767.0,1766.7,6.3146469]
[1746024246246,6.27397774,1767.0,1766.8,0.63146469]
[1746024246450,6.27397774,1767.2,1766.7,6.3146469]
[1746024247085,6.27397774,1767.2,1766.8,5.2613469]
[1746024247253,6.69660224,1767.4,1766.9,1.0755]
[1746024247452,1.1559,1767.7,1767.0,0.05658511]
[1746024247453,6.27397774,1767.5,1767.0,0.05658511]
[1746024247784,6.70132597,1767.6,1767.1,6.3368469]
[1746024247987,6.27397774,1767.4,1767.1,6.3368469]
[1746024248558,1.1559,1767.6,1767.1,6.3368469]
[1746024248775,6.27397774,1767.5,1767.1,6.3368469]
[1746024248981,6.27397774,1767.5,1767.2,5.2613469]
[1746024250689,6.27397774,1767.3,1767.2,5.2613469]
[1746024250894,6.90137551,1767.3,1766.9,1.1077]
[1746024251071,6.27397774,1767.3,1766.9,1.1077]
[1746024251855,9.27397774,1767.5,1767.0,5.2613469]
[1746024252394,6.27397774,1767.3,1767.0,5.2613469]
[1746024252596,6.27397774,1767.1,1767.0,5.2613469]
[1746024253287,7.33687774,1767.3,1767.0,5.2613469]
[1746024253657,6.27397774,1767.3,1767.0,5.2613469]
[1746024254407,6.90137551,1767.3,1767.0,5.2613469]
[1746024254559,7.34717774,1767.1,1767.0,5.2613469]
[1746024254959,6.27397774,1767.1,1767.0,5.2613469]
[1746024255971,1.0915,1767.0,1766.3,5.2613469]
[1746024256170,6.27397774,1766.6,1766.3,5.2613469]
[1746024256371,6.69405429,1766.6,1766.3,5.2613469]
[1746024256687,6.69405429,1766.6,1766.3,5.89805159]
[1746024256869,7.78555429,1766.6,1766.3,5.2613469]
[1746024258293,6.27397774,1766.4,1766.3,5.2613469]
[1746024258663,10.41247774,1766.4,1766.3,5.2613469]
[1746024258862,16.07370962,1766.4,1766.3,5.2613469]
[1746024259164,10.41247774,1766.4,1765.8,5.2613469]
[1746024259365,10.41247774,1766.4,1765.9,5.2613469]
[1746024259366,6.27397774,1766.1,1765.9,5.2613469]
[1746024260289,1.1188,1766.0,1765.9,5.2613469]
[1746024260800,4.1188,1766.0,1765.6,5.2613469]
[1746024260997,6.27397774,1765.7,1765.6,5.2613469]
[1746024263301,10.33367774,1765.7,1765.6,5.2613469]
[1746024263619,11.36704551,1765.7,1765.6,5.2613469]
[1746024264307,3.0,1765.6,1765.1,5.2613469]
[1746024264514,3.0,1765.4,1765.1,5.2613469]
[1746024265222,3.42033765,1765.4,1765.1,5.2613469]
[1746024265426,1.1311,1765.3,1765.1,5.2613469]
[1746024265884,3.42033765,1765.4,1765.1,5.2613469]
[1746024266840,6.27397774,1765.3,1765.1,5.2613469]
[1746024267512,3.42033765,1765.4,1765.1,5.2613469]
[1746024267710,3.0,1765.4,1765.1,5.2613469]
[1746024268028,6.691,1765.7,1765.2,5.31800178]
[1746024268313,12.96497774,1765.7,1765.2,5.90563708]
[1746024268514,12.96497774,1765.7,1765.2,5.2613469]
[1746024268715,6.27397774,1765.5,1765.2,5.2613469]
[1746024269032,3.0,1765.4,1765.2,5.2613469]
[1746024269229,1.167,1765.3,1765.2,5.2613469]
[1746024270731,10.44097774,1765.3,1765.2,5.2613469]
[1746024270943,11.48507551,1765.3,1765.2,5.2613469]
[1746024272038,3.0,1765.2,1764.8,5.2613469]
[1746024272235,6.27397774,1765.1,1764.8,5.2613469]
[1746024272884,6.27397774,1765.1,1764.8,5.2113469]
[1746024273092,3.0,1765.2,1764.8,5.2113469]
[1746024273414,3.0,1765.2,1764.8,5.78982905]
[1746024274287,3.0,1765.2,1764.8,5.2113469]
[1746024275427,3.42239366,1765.2,1764.8,5.2113469]
[1746024275638,3.42239366,1765.2,1764.9,5.1613469]
[1746024276433,0.42239366,1765.2,1764.9,5.1613469]
[1746024276622,3.0,1765.4,1764.9,5.1613469]
[1746024276826,1.1171,1765.5,1764.9,5.1613469]
[1746024276997,1.58381,1765.5,1764.9,5.1613469]
[1746024277212,1.58381,1765.5,1764.9,5.1113469]
[1746024280031,3.0,1765.4,1764.8,1.1269]
[1746024282104,3.0,1765.2,1764.7,6.08147457]
[1746024283399,3.0,1765.2,1764.7,0.57347457]
[1746024283643,3.0,1764.8,1764.7,0.57347457]
[1746024284343,4.1297,1764.8,1764.7,0.57347457]
[1746024284714,4.55988231,1764.8,1764.7,0.57347457]
[1746024285430,3.43018231,1764.8,1764.7,0.57347457]
[1746024285630,0.43018231,1764.8,1764.7,0.57347457]
[1746024285816,1.0755,1765.1,1764.7,0.57347457]
[1746024286211,2.11044777,1765.1,1764.7,0.57347457]
[1746024287244,3.0,1765.0,1764.7,0.57347457]
[1746024288816,9.27397774,1765.0,1764.7,0.57347457]
[1746024291045,3.0,1765.0,1764.7,0.57347457]
[1746024293421,3.0,1765.0,1764.7,5.68482147]
[1746024294158,9.82861137,1765.0,1764.7,5.68482147]
[1746024297145,10.35707774,1764.8,1764.7,5.68482147]
[1746024298546,3.55,1764.7,1764.0,1.1038]
[1746024299616,3.0,1764.5,1764.0,1.1038]
[1746024300034,4.081,1764.5,1764.0,1.1038]
[1746024300231,6.27397774,1764.2,1763.6,1.1538]
[1746024300555,6.27397774,1764.2,1763.7,2.09335885]
[1746024300556,7.37687774,1764.2,1763.7,2.09335885]
[1746024300740,1.1029,1764.2,1763.7,2.09335885]
[1746024301257,8.509,1764.3,1763.8,3.19435885]
[1746024301415,8.93039186,1764.3,1763.9,0.31943588]
[1746024301618,0.42139186,1764.3,1763.8,3.19435885]
[1746024301953,4.0612,1764.5,1763.8,3.19435885]
[1746024302951,6.27397774,1764.4,1763.8,3.19435885]
[1746024303129,3.0,1764.3,1763.8,3.19435885]
[1746024303522,1.1164,1764.2,1763.8,2.09335885]
[1746024304139,1.40752134,1764.2,1763.8,2.09335885]
[1746024304350,1.89132746,1764.2,1763.8,2.09335885]
[1746024304879,0.43053984,1764.3,1763.8,2.09335885]
[1746024305071,0.43053984,1764.3,1763.9,3.20375885]
[1746024305224,1.1262,1764.4,1763.9,3.20375885]
[1746024306523,3.0,1764.3,1763.9,2.09335885]
[1746024306830,4.1469,1764.1,1763.7,1.1104]
[1746024307030,1.1469,1763.7,1763.4,2.09335885]
[1746024307560,4.1469,1763.9,1763.4,3.20375885]
[1746024308067,3.0,1763.9,1763.4,3.20375885]
[1746024310173,0.43271278,1763.9,1763.5,3.18825885]
[1746024310354,0.43271278,1763.9,1763.5,3.24495655]
[1746024310555,1.1108,1764.5,1763.7,1.1636]
[1746024310725,0.4322441,1764.5,1763.9,1.1636]
[1746024310924,1.1108,1764.7,1764.1,1.1636]
[1746024311127,1.1108,1764.7,1764.2,2.09335885]
[1746024311326,1.39713259,1764.9,1764.2,2.41905474]
[1746024311564,4.39713259,1764.9,1764.2,2.41905474]
[1746024312072,4.39713259,1764.9,1764.2,2.09335885]
[1746024312225,0.55,1764.8,1764.2,2.09335885]
[1746024313074,4.39713259,1764.9,1764.3,0.05667961]
[1746024313242,4.39713259,1764.9,1764.2,2.15003846]
[1746024313423,4.8217075,1764.9,1764.2,2.09335885]
[1746024313738,5.90844161,1764.9,1764.3,1.0991]
[1746024314528,1.51130902,1764.9,1764.3,1.0991]
[1746024314726,0.70928712,1764.9,1764.3,1.0991]
[1746024314970,1.1551,1764.8,1764.3,1.0991]
[1746024315331,3.0,1764.7,1764.3,1.0991]
[1746024315553,3.0,1764.7,1764.2,2.09335885]
[1746024315761,3.0,1764.5,1764.2,2.09335885]
[1746024316331,1.0575,1764.4,1764.0,5.491]
[1746024317582,1.48315908,1764.4,1764.0,5.491]
[1746024319674,1.48315908,1764.4,1764.0,7.58435885]
[1746024320044,0.42565908,1764.4,1764.0,7.58435885]
[1746024320244,3.0,1764.5,1764.0,7.58435885]
[1746024320440,1.06507777,1764.5,1764.0,7.58435885]
[1746024320777,1.0768,1765.0,1764.2,1.17]
[1746024320954,1.0768,1765.0,1764.3,1.12506565]
[1746024321363,5.49,1765.1,1764.5,1.0684]
[1746024321559,3.0,1765.0,1764.6,2.09335885]
[1746024321962,1.136,1765.2,1764.7,0.05666279]
[1746024322161,1.08,1765.4,1764.8,1.1089]
[1746024322362,10.35397774,1765.4,1764.8,1.1089]
[1746024322586,1.08,1765.3,1764.3,1.1089]
[1746024322886,3.0,1764.9,1764.3,1.1089]
[1746024323188,0.3,1764.8,1764.3,1.1089]
[1746024323385,1.08,1764.7,1764.0,1.1089]
[1746024323589,4.08,1764.7,1764.0,1.1089]
[1746024324104,4.08,1764.7,1764.0,1.16557979]
[1746024324301,4.08,1764.7,1764.0,1.1089]
[1746024324485,0.408,1764.6,1764.0,1.76879]
[1746024324991,4.08,1764.7,1764.0,1.82546665]
[1746024325199,4.5081553,1764.7,1764.0,1.76879]
[1746024325398,3.0,1764.5,1764.0,1.1089]
[1746024325698,4.1473,1764.3,1763.8,6.573]
[1746024326769,1.1473,1764.5,1763.8,6.573]
[1746024328606,3.0,1764.3,1763.8,6.573]
[1746024330097,1.1473,1764.5,1763.8,6.573]
[1746024330293,1.58758533,1764.7,1764.0,1.1284]
[1746024330497,1.58758533,1764.7,1764.1,2.09335885]
[1746024331063,7.86156307,1764.7,1764.1,2.09335885]
[1746024331692,7.86156307,1764.7,1764.1,2.15003334]
[1746024331915,0.42568533,1764.7,1764.2,1.0855]
[1746024332066,0.42568533,1764.7,1764.2,6.63317025]
[1746024332263,1.1763,1764.9,1764.2,7.44915291]
[1746024332805,1.1763,1764.9,1764.3,1.107]
[1746024333006,12.92307774,1765.1,1764.5,1.107]
[1746024333202,12.92307774,1765.1,1764.5,3.20035885]
[1746024333203,3.0,1765.0,1764.5,3.20035885]
[1746024333407,0.42305179,1765.0,1764.5,3.20035885]
[1746024333716,6.6491,1765.1,1764.5,3.20035885]
[1746024333717,6.6491,1765.1,1764.5,3.52039474]
[1746024333867,12.92307774,1765.1,1764.5,3.52039474]
[1746024334701,3.0,1764.8,1764.5,2.09335885]
[1746024334901,4.0887,1764.6,1763.7,1.0907]
[1746024335206,6.27397774,1764.5,1764.0,1.0907]
[1746024335409,4.50706588,1764.6,1764.0,1.0907]
[1746024335566,6.13417024,1764.6,1764.0,1.0907]
[1746024336388,3.41836588,1764.6,1764.0,1.0907]
[1746024336602,3.41836588,1764.6,1764.0,1.14738086]
[1746024336894,3.41836588,1764.6,1764.1,2.09335885]
[1746024337095,0.41836588,1764.6,1764.3,1.1484]
[1746024337427,7.38927774,1764.9,1764.3,1.1484]
[1746024337428,1.1153,1764.9,1764.3,1.1484]
[1746024337623,1.52683,1764.9,1764.3,2.02157589]
[1746024337818,0.41153,1764.9,1764.3,2.02157589]
[1746024338132,0.84169584,1764.9,1764.3,1.1484]
[1746024338345,0.41153,1764.9,1764.3,1.1484]
[1746024338504,3.0,1765.0,1764.4,0.05666801]
[1746024338710,5.49,1765.1,1764.5,1.089]
[1746024339023,5.49,1765.1,1764.6,0.05666119]
[1746024339221,5.49,1765.1,1764.4,1.1045]
[1746024339222,3.0,1765.0,1764.4,1.1045]
[1746024339394,3.0,1765.1,1764.4,1.1045]
[1746024339596,3.92739777,1765.1,1764.4,1.1045]
[1746024339836,3.0,1764.9,1764.4,1.1045]
[1746024340796,1.35922497,1765.1,1764.4,1.1045]
[1746024340797,1.35922497,1765.1,1764.4,1.16116154]
[1746024341103,0.4318272,1765.1,1764.4,1.16116154]
[1746024341309,4.0971,1765.3,1764.4,1.16116154]
[1746024341523,3.0,1765.3,1764.4,1.16116154]
[1746024341726,30.50697774,1765.4,1764.4,1.16116154]
[1746024342032,30.50697774,1765.4,1764.4,1.1045]
[1746024342231,6.05069777,1765.3,1764.4,1.1045]
[1746024342464,6.05069777,1765.3,1764.5,0.05665674]
[1746024342624,6.05069777,1765.3,1764.6,1.1564]
[1746024342805,6.05069777,1765.3,1764.2,5.49]
[1746024342806,3.42918606,1765.3,1764.7,0.05665675]
[1746024343011,3.42918606,1765.3,1764.8,1.1471]
[1746024343809,9.27397774,1765.2,1764.8,1.1471]
[1746024344004,9.27397774,1765.2,1764.6,6.6171]
[1746024344005,10.39997774,1765.2,1764.6,6.6171]
[1746024344209,3.0,1764.9,1764.6,1.1471]
[1746024345029,3.0,1764.7,1764.5,5.47]
[1746024346232,3.0,1764.9,1764.5,5.47]
[1746024346618,3.0,1765.1,1764.6,1.103]
[1746024346928,6.27397774,1765.2,1764.6,1.103]
[1746024347131,3.0,1765.1,1764.6,1.103]
[1746024347437,3.0,1764.9,1764.6,1.103]
[1746024348426,3.0,1764.7,1764.4,1.1215]
[1746024350229,3.0,1764.5,1764.2,6.6296]
[1746024350830,3.0,1764.5,1764.2,5.47]
[1746024351632,3.0,1764.5,1764.0,1.0818]
[1746024352251,3.0,1764.3,1764.0,1.0818]
[1746024352450,3.0,1764.3,1762.7,16.90745352]
[1746024352451,4.1158,1764.3,1763.6,1.1293]
[1746024353044,3.0,1764.1,1763.6,1.1293]
[1746024353970,4.1158,1764.3,1763.6,1.1293]
[1746024354140,2.4925329,1764.5,1763.8,1.0574]
[1746024354468,5.4925329,1764.5,1763.8,1.0574]
[1746024356371,6.27397774,1764.2,1763.4,6.5924]
[1746024356686,3.0,1764.1,1763.4,6.5924]
[1746024356912,3.0,1764.1,1763.6,1.0777]
[1746024358814,3.0,1764.3,1763.6,1.0777]
[1746024359098,3.0,1764.3,1763.7,0.05669297]
[1746024359272,3.0,1764.3,1763.6,1.0777]
[1746024359273,4.0902231,1764.3,1763.6,1.0777]
[1746024360293,4.1012,1764.1,1763.6,1.0777]
[1746024360494,4.1012,1764.1,1763.4,1.1112]
[1746024360787,4.1012,1764.1,1763.4,1.16789758]
[1746024360959,5.13871777,1764.1,1763.4,1.1112]
[1746024362656,6.27397774,1763.5,1763.1,1.0942]
[1746024362858,4.1399,1763.4,1762.9,8.14750957]
[1746024363171,4.1399,1763.4,1762.9,8.96226053]
[1746024363387,4.1399,1763.6,1762.9,8.96226053]
[1746024363589,3.0,1763.4,1762.9,1.90895096]
[1746024363811,3.28867399,1763.4,1762.9,1.90895096]
[1746024364004,3.0,1763.2,1762.8,7.05330957]
[1746024364364,3.0,1763.4,1762.8,7.05330957]
[1746024364564,0.2839421,1763.5,1762.8,7.05330957]
[1746024364759,0.43319421,1763.5,1762.9,0.70533096]
[1746024364974,0.43319421,1763.5,1762.8,7.05330957]
[1746024364975,4.048,1763.4,1762.8,7.05330957]
[1746024365601,3.0,1763.2,1762.8,7.05330957]
[1746024366295,4.1099,1763.0,1762.8,7.05330957]
[1746024366682,4.53410649,1763.0,1762.8,7.05330957]
[1746024366992,0.42420649,1763.0,1762.8,7.05330957]
[1746024367194,6.5718,1763.4,1762.9,1.1113]
[1746024367387,3.0,1763.3,1762.9,1.1113]
[1746024369097,3.42817184,1763.3,1762.9,1.1113]
[1746024371292,0.42817184,1763.3,1762.9,1.1113]
[1746024371604,3.0,1763.3,1762.9,1.1113]
[1746024372178,3.0,1763.3,1762.9,1.76763]
[1746024373213,3.42024115,1763.3,1762.9,1.76763]
[1746024373687,0.42024115,1763.3,1762.9,1.76763]
[1746024373916,10.36987774,1763.7,1762.9,1.76763]
[1746024374088,3.0,1763.4,1762.9,1.76763]
[1746024374591,5.00769777,1763.4,1762.9,1.1113]
[1746024375197,3.0,1763.0,1762.8,5.452]
[1746024375598,3.0,1763.2,1762.7,1.1527]
[1746024375987,0.4177255,1763.3,1762.8,0.05672169]
[1746024376303,5.453,1763.7,1762.9,1.1506]
[1746024376623,3.0,1763.6,1763.1,1.113]
[1746024378016,3.43219051,1763.6,1763.1,1.113]
[1746024378824,10.5946873,1763.6,1763.1,1.113]
[1746024379194,1.1119,1763.5,1762.5,1.1133]
[1746024379393,1.1119,1763.5,1762.7,1.1133]
[1746024379690,3.0,1763.3,1762.7,1.1133]
[1746024380218,1.1119,1763.5,1762.9,1.1133]
[1746024380610,3.0,1763.3,1762.9,1.1133]
[1746024380908,3.0,1762.9,1762.3,6.5663]
[1746024381898,3.0,1762.9,1762.4,0.05673164]
[1746024382107,10.38587774,1763.2,1762.5,1.118]
[1746024382420,1.03858777,1763.1,1762.5,1.118]
[1746024382597,1.46020482,1763.1,1762.5,1.17472713]
[1746024382994,0.42161705,1763.1,1762.5,1.17472713]
[1746024383205,9.27397774,1763.2,1762.5,1.118]
[1746024383725,3.0,1762.9,1762.5,1.118]
[1746024385722,0.4344928,1763.1,1762.5,1.118]
[1746024385921,10.42977774,1763.2,1762.5,1.118]
[1746024386110,1.04297777,1763.1,1762.5,1.118]
[1746024386813,3.0,1762.9,1762.5,1.118]
[1746024390643,1.46302722,1763.1,1762.3,1.144]
[1746024390644,3.0,1762.5,1762.3,1.144]
[1746024392032,0.42955824,1762.5,1762.3,1.144]
[1746024392243,10.40207774,1762.8,1762.3,1.144]
[1746024392444,1.04020777,1762.7,1762.3,1.144]
[1746024392947,3.0,1762.5,1762.3,1.144]
[1746024393551,1.04020777,1762.7,1762.3,1.144]
[1746024395556,0.42162714,1762.7,1762.3,1.144]
[1746024395760,3.0,1762.8,1762.3,1.144]
[1746024396341,3.0,1762.8,1762.3,1.20073356]
[1746024396660,3.0,1762.8,1762.3,1.144]
[1746024396834,5.454,1762.9,1762.3,1.144]
[1746024397161,5.455,1763.3,1762.5,1.1285]
[1746024397355,3.42217723,1763.3,1762.6,1.1285]
[1746024398262,3.0,1763.1,1762.6,1.1285]
[1746024398929,0.42217723,1763.3,1762.6,1.1285]
[1746024398930,3.0,1762.9,1762.6,1.1285]
[1746024399130,3.92739777,1762.9,1762.6,1.1285]
[1746024400464,0.92739777,1762.9,1762.6,1.1285]
[1746024400664,3.0,1763.1,1762.6,1.1285]
[1746024401948,1.47547723,1763.3,1762.6,1.1285]
[1746024401949,3.0,1762.9,1762.6,1.1285]
[1746024402149,3.0,1762.7,1762.6,1.1285]
[1746024402478,7.38257774,1763.0,1762.4,1.1159]
[1746024402634,3.73825777,1762.9,1762.4,1.1159]
[1746024404037,3.0,1762.7,1762.4,1.1159]
[1746024404235,3.0,1762.5,1762.1,1.0656]
[1746024404635,6.27397774,1763.3,1762.2,1.12234463]
[1746024404864,3.0,1763.2,1762.2,1.12234463]
[1746024405059,3.92739777,1763.2,1762.2,1.12234463]
[1746024405366,0.92739777,1763.2,1762.2,1.12234463]
[1746024405567,3.0,1763.0,1762.2,1.12232472]
[1746024407053,6.27397774,1763.1,1762.2,1.12232472]
[1746024407368,3.0,1763.2,1762.4,1.0771]
[1746024407567,0.42807186,1763.3,1762.6,1.0771]
[1746024407771,11.70797774,1763.7,1762.8,1.0771]
[1746024407945,1.17079777,1763.6,1763.0,1.0675]
[1746024408271,5.434,1763.7,1763.2,1.0675]
[1746024408436,5.434,1763.7,1763.3,0.05670342]
[1746024408636,6.27397774,1763.9,1763.4,1.0675]
[1746024408841,6.27397774,1763.7,1763.4,1.0675]
[1746024409065,3.0,1763.6,1763.4,1.0675]
[1746024409871,0.42201625,1763.7,1763.4,1.0675]
[1746024410071,11.70797774,1764.1,1763.4,1.0675]
[1746024410366,11.70797774,1764.1,1762.9,5.984]
[1746024410367,6.71369777,1764.1,1763.6,1.1388]
[1746024410672,5.434,1764.1,1763.6,1.19549134]
[1746024411150,5.434,1764.1,1763.6,1.1388]
[1746024411151,3.0,1764.0,1763.6,1.1388]
[1746024411351,0.43263489,1764.0,1763.6,1.1388]
[1746024411548,3.0,1764.0,1763.6,1.1388]
[1746024411881,0.4368994,1764.0,1763.6,1.1388]
[1746024412081,3.0,1764.0,1763.6,1.1388]
[1746024413101,3.0,1763.8,1763.4,5.433]
[1746024413384,3.0,1763.8,1763.4,6.5368]
[1746024413882,3.0,1763.8,1763.4,1.1038]
[1746024414246,3.0,1763.6,1763.2,6.5748]
[1746024414442,3.43041734,1763.6,1763.2,1.1418]
[1746024414649,3.0,1763.4,1763.1,5.433]
[1746024414886,4.1117,1763.4,1763.0,1.1349]
[1746024415216,3.0,1763.0,1762.8,6.5679]
[1746024415421,3.0,1763.2,1762.8,6.5679]
[1746024415712,0.41583803,1763.2,1762.8,6.5679]
[1746024416008,4.1117,1763.4,1762.8,6.5679]
[1746024416235,4.1117,1763.4,1762.8,1.1349]
[1746024416236,0.41117,1763.3,1762.8,1.1349]
[1746024416516,3.0,1763.1,1762.6,1.1227]
[1746024417708,1.1362,1763.0,1762.6,1.1227]
[1746024418016,3.0,1762.8,1762.4,6.509]
[1746024418782,3.42086661,1762.8,1762.4,6.509]
[1746024421213,4.38986891,1762.8,1762.2,1.1078]
[1746024421518,3.0,1762.5,1761.9,1.1468]
[1746024422495,1.6238,1762.7,1761.9,1.2035475]
[1746024422496,1.0738,1762.7,1761.9,1.2035475]
[1746024422714,6.26915643,1762.6,1761.9,1.1468]
[1746024422914,7.28676649,1762.6,1761.9,1.80488]
[1746024424442,7.28676649,1762.6,1762.0,1.0662]
[1746024425042,6.26915643,1762.3,1761.8,1.0662]
[1746024425245,6.26915643,1762.0,1761.6,9.23319003]
[1746024425549,7.00422207,1762.0,1761.6,9.23319003]
[1746024425732,6.26915643,1762.0,1761.6,9.23319003]
[1746024426245,7.34515643,1762.3,1761.6,9.23319003]
[1746024426467,7.76479141,1762.3,1761.6,9.23319003]
[1746024428324,7.34515643,1762.0,1761.6,9.23319003]
[1746024428514,8.07967207,1762.0,1761.6,9.23319003]
[1746024431087,0.55,1761.9,1761.4,1.0822]
[1746024431302,8.07967207,1762.0,1761.3,0.4086531]
[1746024431660,0.55,1761.9,1761.3,0.4086531]
[1746024432266,6.26915643,1761.7,1761.3,0.4086531]
[1746024432468,0.62691564,1761.6,1761.3,0.4086531]
[1746024432659,7.30715643,1761.4,1761.3,0.4086531]
[1746024432860,0.42355799,1761.6,1761.3,0.4086531]
[1746024433102,1.0442,1761.6,1761.3,0.4086531]
[1746024433465,6.26915643,1761.7,1761.3,1.4619531]
[1746024434099,0.73451564,1762.0,1761.3,1.4619531]
[1746024434100,13.47037207,1762.0,1761.3,1.4619531]
[1746024434302,1.34703721,1761.9,1761.3,1.4619531]
[1746024434975,6.26915643,1761.7,1761.3,1.4619531]
[1746024435521,7.30545643,1761.7,1761.3,0.4086531]
[1746024436891,6.26915643,1761.7,1761.3,0.4086531]
[1746024437418,6.26915643,1761.4,1761.1,1.1038]
[1746024437623,6.26915643,1761.4,1760.9,1.0356]
[1746024440324,1.047,1761.3,1760.8,5.419]
[1746024440483,1.047,1761.3,1760.7,1.0934]
[1746024440825,6.26915643,1761.1,1760.7,1.0934]
[1746024441124,1.047,1761.3,1760.7,1.0934]
[1746024441125,1.47913844,1761.3,1760.7,1.0934]
[1746024441286,2.25396793,1761.3,1760.7,1.0934]
[1746024441617,1.20696793,1761.3,1760.7,1.0934]
[1746024442626,6.26915643,1761.1,1760.7,1.0934]
[1746024443026,7.34185643,1761.1,1760.5,1.0373]
[1746024443231,7.89185643,1760.8,1760.0,1.0373]
[1746024443439,6.26915643,1760.4,1760.0,1.0373]
[1746024443732,3.0,1760.3,1760.0,1.0373]
[1746024444698,3.0,1760.3,1759.7,1.1138]
[1746024445265,3.43450849,1760.3,1759.7,1.1138]
[1746024445431,3.72377361,1760.3,1759.7,1.1138]
[1746024445730,4.1293,1760.4,1759.7,1.80804531]
[1746024446030,4.1293,1760.4,1759.7,1.1138]
[1746024447588,4.41604422,1760.4,1759.7,1.1138]
[1746024448236,3.0,1760.1,1759.7,1.1138]
[1746024450252,5.84224831,1760.3,1759.7,1.1138]
[1746024450429,0.42024831,1760.3,1759.8,0.05681734]
[1746024450628,0.42024831,1760.3,1759.7,1.1138]
[1746024450629,4.02582925,1760.3,1759.7,1.1138]
[1746024452649,3.0,1760.1,1759.7,1.1138]
[1746024453227,1.1418,1760.0,1759.6,0.4086531]
[1746024453424,6.29004716,1759.9,1759.6,0.4086531]
[1746024453640,3.0,1759.8,1759.6,0.4086531]
[1746024453838,3.0,1759.9,1759.6,0.4086531]
[1746024454038,3.95648,1759.9,1759.6,0.4086531]
[1746024454334,3.0,1759.9,1759.6,0.4086531]
[1746024454540,3.0,1759.9,1759.7,1.0774]
[1746024454742,3.0,1760.1,1759.7,1.0774]
[1746024457933,3.0,1760.1,1758.8,0.05682079]
[1746024457934,3.0,1759.8,1759.1,1.0629]
[1746024459256,3.43247713,1759.8,1759.1,1.0629]
[1746024459956,0.43247713,1759.8,1759.2,1.08932924]
[1746024460138,8.424,1760.1,1759.3,1.1358]
[1746024460470,8.424,1760.1,1759.5,1.1358]
[1746024460638,9.37388,1760.1,1759.5,1.1358]
[1746024461230,3.0,1759.9,1759.5,1.1358]
[1746024463236,3.0,1760.0,1759.5,1.1358]
[1746024463636,5.424,1760.1,1759.5,1.1358]
[1746024464668,5.424,1760.1,1759.7,1.1133]
[1746024465170,6.2664,1760.1,1759.7,1.1133]
[1746024467178,5.424,1760.1,1759.7,1.1133]
[1746024467840,9.2907687,1760.2,1759.7,1.1133]
[1746024470850,3.0,1759.9,1759.7,1.1133]
[1746024472757,10.74103038,1760.3,1759.7,1.1133]
[1746024472953,1.07410304,1760.2,1759.7,1.1133]
[1746024473156,10.74103038,1760.3,1759.7,1.1133]
[1746024474280,9.71520113,1760.3,1759.7,1.1133]
[1746024475660,3.42443243,1760.3,1759.7,1.1133]
[1746024475873,0.42443243,1760.3,1759.7,1.1319]
[1746024476069,11.6977687,1760.5,1759.7,1.1319]
[1746024476248,3.0,1760.4,1759.7,1.1319]
[1746024476452,3.42677059,1760.4,1759.7,1.1319]
[1746024477182,0.42677059,1760.4,1759.9,1.0672]
[1746024477348,6.2907687,1760.7,1760.1,1.0672]
[1746024477679,6.2907687,1760.7,1760.0,5.46380422]
[1746024477680,6.2907687,1760.9,1760.3,1.0672]
[1746024478369,6.2907687,1760.9,1760.5,1.1246]
[1746024478370,0.41998086,1760.9,1760.5,1.1246]
[1746024478574,6.57545517,1761.1,1760.5,1.1246]
[1746024478771,3.0,1761.0,1760.5,1.1246]
[1746024479486,6.71258578,1761.1,1760.5,1.1246]
[1746024479681,3.0,1761.0,1760.5,1.1246]
[1746024480389,3.0,1761.0,1760.6,1.099]
[1746024480687,3.0,1760.8,1760.6,1.099]
[1746024481887,9.2907687,1760.7,1760.4,6.4518]
[1746024482107,6.2907687,1760.5,1760.0,5.406]
[1746024482411,3.0,1760.4,1760.1,1.0904]
[1746024482706,3.0,1760.2,1760.1,1.0904]